[Event "Titled Tuesday Blitz July 11 Early 2023"]
[White "Larina, Maria"]
[Black "Balla, Tamas-Kristof"]
[WhiteFideId "24113182"]
[BlackFideId "1208497"]
[WhiteElo "2196"]
[BlackElo "2418"]
[Result "1-0"]
[Round "11"]
[TimeControl "180+2"]
[Date "2023.07.11"]
[WhiteClock "0:00:07"]
[BlackClock "0:00:09"]
[Board "127"]

1. e4 {[%clk 0:03:00]}  c5 {[%clk 0:02:58]} 2. Nc3 {[%clk 0:03:00]}  Nc6 {[%clk 0:02:56]} 3. g3 {[%clk 0:03:00]}  g6 {[%clk 0:02:56]} 4. Bg2 {[%clk 0:03:01]}  Bg7 {[%clk 0:02:56]} 5. d3 {[%clk 0:03:01]}  e6 {[%clk 0:02:57]} 6. Be3 {[%clk 0:03:02]}  d6 {[%clk 0:02:56]} 7. Qd2 {[%clk 0:03:02]}  Nf6 {[%clk 0:02:55]} 8. Bh6 {[%clk 0:02:59]}  O-O {[%clk 0:02:55]} 9. h4 {[%clk 0:02:58]}  Bxh6 {[%clk 0:02:41]} 10. Qxh6 {[%clk 0:02:58]}  Ng4 {[%clk 0:02:41]} 11. Qd2 {[%clk 0:02:55]}  h5 {[%clk 0:02:40]} 12. Nh3 {[%clk 0:02:54]}  e5 {[%clk 0:02:28]} 13. O-O-O {[%clk 0:02:53]}  b5 {[%clk 0:02:18]} 14. f3 {[%clk 0:02:51]}  Nf6 {[%clk 0:02:15]} 15. Ng5 {[%clk 0:02:40]}  b4 {[%clk 0:01:56]} 16. Nd5 {[%clk 0:02:39]}  Nxd5 {[%clk 0:01:56]} 17. exd5 {[%clk 0:02:40]}  Nd4 {[%clk 0:01:54]} 18. g4 {[%clk 0:02:29]}  a5 {[%clk 0:01:40]} 19. gxh5 {[%clk 0:02:27]}  a4 {[%clk 0:01:36]} 20. hxg6 {[%clk 0:02:18]}  fxg6 {[%clk 0:01:32]} 21. c3 {[%clk 0:02:13]}  b3 {[%clk 0:01:23]} 22. cxd4 {[%clk 0:01:44]}  bxa2 {[%clk 0:01:22]} 23. Kc2 {[%clk 0:01:44]}  cxd4 {[%clk 0:01:15]} 24. Ra1 {[%clk 0:01:41]}  Bf5 {[%clk 0:01:01]} 25. Ne4 {[%clk 0:01:38]}  Rc8+ {[%clk 0:00:58]} 26. Kd1 {[%clk 0:01:38]}  Qb6 {[%clk 0:00:50]} 27. Ke2 {[%clk 0:01:25]}  Qb3 {[%clk 0:00:32]} 28. Rhc1 {[%clk 0:01:25]}  Rxc1 {[%clk 0:00:32]} 29. Rxc1 {[%clk 0:01:24]}  Rc8 {[%clk 0:00:26]} 30. Rxc8+ {[%clk 0:01:15]}  Bxc8 {[%clk 0:00:27]} 31. Qc1 {[%clk 0:01:15]}  Bf5 {[%clk 0:00:26]} 32. Bf1 {[%clk 0:01:00]}  Qxd5 {[%clk 0:00:26]} 33. Kf2 {[%clk 0:01:00]}  Qb3 {[%clk 0:00:24]} 34. Be2 {[%clk 0:00:58]}  d5 {[%clk 0:00:25]} 35. Nc5 {[%clk 0:00:52]}  Qb6 {[%clk 0:00:15]} 36. Nxa4 {[%clk 0:00:50]}  Qa5 {[%clk 0:00:13]} 37. b3 {[%clk 0:00:47]}  Qb4 {[%clk 0:00:08]} 38. Qb2 {[%clk 0:00:43]}  e4 {[%clk 0:00:08]} 39. fxe4 {[%clk 0:00:43]}  dxe4 {[%clk 0:00:08]} 40. Qxa2 {[%clk 0:00:37]}  exd3 {[%clk 0:00:08]} 41. Bf3 {[%clk 0:00:33]}  d2 {[%clk 0:00:08]} 42. Bd1 {[%clk 0:00:23]}  d3 {[%clk 0:00:05]} 43. Qb2 {[%clk 0:00:22]}  Qxh4+ {[%clk 0:00:05]} 44. Ke3 {[%clk 0:00:21]}  Qg3+ {[%clk 0:00:04]} 45. Kxd2 {[%clk 0:00:20]}  Qf2+ {[%clk 0:00:04]} 46. Kc3 {[%clk 0:00:20]}  Qe3 {[%clk 0:00:03]} 47. Qd2 {[%clk 0:00:19]}  Qe5+ {[%clk 0:00:03]} 48. Kb4 {[%clk 0:00:17]}  Qd4+ {[%clk 0:00:04]} 49. Ka3 {[%clk 0:00:17]}  Qf6 {[%clk 0:00:03]} 50. Nc3 {[%clk 0:00:15]}  g5 {[%clk 0:00:04]} 51. Bf3 {[%clk 0:00:14]}  g4 {[%clk 0:00:04]} 52. Bd5+ {[%clk 0:00:14]}  Kg7 {[%clk 0:00:04]} 53. b4 {[%clk 0:00:12]}  g3 {[%clk 0:00:04]} 54. Qe3 {[%clk 0:00:10]}  Qxc3+ {[%clk 0:00:04]} 55. Ka4 {[%clk 0:00:09]}  Qc2+ {[%clk 0:00:04]} 56. Kb5 {[%clk 0:00:09]}  d2 {[%clk 0:00:04]} 57. Qe7+ {[%clk 0:00:09]}  Kh6 {[%clk 0:00:04]} 58. Qe3+ {[%clk 0:00:09]}  Kg6 {[%clk 0:00:05]} 59. Qxg3+ {[%clk 0:00:09]}  Kf6 {[%clk 0:00:05]} 60. Qd6+ {[%clk 0:00:09]}  Kg5 {[%clk 0:00:06]} 61. Qg3+ {[%clk 0:00:09]}  Bg4 {[%clk 0:00:07]} 62. Qe5+ {[%clk 0:00:09]}  Qf5 {[%clk 0:00:07]} 63. Qg7+ {[%clk 0:00:08]}  Kf4 {[%clk 0:00:07]} 64. Qd4+ {[%clk 0:00:08]}  Kg3 {[%clk 0:00:08]} 65. Qxd2 {[%clk 0:00:09]}  Bf3 {[%clk 0:00:08]} 66. Kc6 {[%clk 0:00:07]}  Bxd5+ {[%clk 0:00:08]} 67. Qxd5 {[%clk 0:00:07]}  Qc2+ {[%clk 0:00:09]} 68. Qc5 {[%clk 0:00:07]}  Qg6+ {[%clk 0:00:09]} 69. Qd6+ {[%clk 0:00:06]}  Qxd6+ {[%clk 0:00:09]} 70. Kxd6 {[%clk 0:00:07]} 1-0


[Site "https://www.chess.com"]

[Event "Titled Tuesday Blitz July 11 Early 2023"]
[White "Kiseleva, Arina"]
[Black "Llanos, Guillermo"]
[WhiteFideId "4164989"]
[BlackFideId "100358"]
[WhiteElo "2191"]
[BlackElo "2362"]
[Result "1-0"]
[Round "11"]
[TimeControl "180+2"]
[Date "2023.07.11"]
[WhiteClock "0:00:26"]
[BlackClock "0:01:35"]
[Board "128"]

1. d4 {[%clk 0:03:00]}  Nf6 {[%clk 0:02:59]} 2. Nf3 {[%clk 0:02:59]}  e6 {[%clk 0:02:59]} 3. e3 {[%clk 0:03:00]}  c5 {[%clk 0:02:59]} 4. Bd3 {[%clk 0:02:59]}  d5 {[%clk 0:02:58]} 5. O-O {[%clk 0:02:58]}  Nc6 {[%clk 0:02:58]} 6. b3 {[%clk 0:02:57]}  cxd4 {[%clk 0:02:57]} 7. exd4 {[%clk 0:02:48]}  Bd6 {[%clk 0:02:57]} 8. Bb2 {[%clk 0:02:49]}  O-O {[%clk 0:02:57]} 9. Nbd2 {[%clk 0:02:48]}  Qc7 {[%clk 0:02:32]} 10. a3 {[%clk 0:02:42]}  b6 {[%clk 0:02:24]} 11. Re1 {[%clk 0:02:34]}  Bb7 {[%clk 0:02:24]} 12. Ne5 {[%clk 0:02:29]}  Bxe5 {[%clk 0:02:22]} 13. dxe5 {[%clk 0:02:27]}  Nd7 {[%clk 0:02:22]} 14. Qh5 {[%clk 0:02:00]}  g6 {[%clk 0:02:20]} 15. Qh6 {[%clk 0:01:59]}  Ne7 {[%clk 0:01:58]} 16. Nf3 {[%clk 0:01:43]}  Rfe8 {[%clk 0:01:52]} 17. Ng5 {[%clk 0:01:39]}  Nf8 {[%clk 0:01:52]} 18. Re3 {[%clk 0:01:36]}  Nf5 {[%clk 0:01:44]} 19. Bxf5 {[%clk 0:01:33]}  exf5 {[%clk 0:01:44]} 20. Rh3 {[%clk 0:00:57]}  Qxc2 {[%clk 0:01:43]} 21. Nxh7 {[%clk 0:00:53]}  Nxh7 {[%clk 0:01:43]} 22. Qxh7+ {[%clk 0:00:52]}  Kf8 {[%clk 0:01:43]} 23. Qh8+ {[%clk 0:00:41]}  Ke7 {[%clk 0:01:42]} 24. Qf6+ {[%clk 0:00:41]}  Kd7 {[%clk 0:01:43]} 25. Qd6+ {[%clk 0:00:31]}  Kc8 {[%clk 0:01:41]} 26. Rc1 {[%clk 0:00:27]}  Qxc1+ {[%clk 0:01:35]} 27. Bxc1 {[%clk 0:00:26]} 1-0


[Site "https://www.chess.com"]

[Event "Titled Tuesday Blitz July 11 Early 2023"]
[White "cycygogne"]
[Black "Kiselev, Pavel"]
[BlackFideId "4191102"]
[WhiteElo "2118"]
[BlackElo "2246"]
[Result "0-1"]
[Round "11"]
[TimeControl "180+2"]
[Date "2023.07.11"]
[WhiteClock "0:00:18"]
[BlackClock "0:00:59"]
[Board "132"]

1. e4 {[%clk 0:03:00]}  c5 {[%clk 0:02:59]} 2. Nf3 {[%clk 0:03:00]}  Nc6 {[%clk 0:02:59]} 3. b4 {[%clk 0:03:00]}  cxb4 {[%clk 0:02:58]} 4. d4 {[%clk 0:03:00]}  d5 {[%clk 0:02:58]} 5. exd5 {[%clk 0:03:01]}  Qxd5 {[%clk 0:02:59]} 6. c4 {[%clk 0:03:02]}  bxc3 {[%clk 0:02:59]} 7. Nxc3 {[%clk 0:03:02]}  Qd8 {[%clk 0:02:59]} 8. d5 {[%clk 0:02:56]}  Nb8 {[%clk 0:02:59]} 9. Bf4 {[%clk 0:02:47]}  Nd7 {[%clk 0:02:59]} 10. Bb5 {[%clk 0:02:41]}  Nf6 {[%clk 0:02:54]} 11. O-O {[%clk 0:02:34]}  g6 {[%clk 0:02:54]} 12. d6 {[%clk 0:02:25]}  e6 {[%clk 0:02:52]} 13. Bg5 {[%clk 0:02:15]}  Bg7 {[%clk 0:02:51]} 14. Rc1 {[%clk 0:01:52]}  O-O {[%clk 0:02:36]} 15. Re1 {[%clk 0:01:52]}  Qa5 {[%clk 0:02:33]} 16. a4 {[%clk 0:01:34]}  a6 {[%clk 0:02:33]} 17. Bxd7 {[%clk 0:01:28]}  Bxd7 {[%clk 0:02:34]} 18. Ne5 {[%clk 0:01:28]}  Bc6 {[%clk 0:02:22]} 19. Nxc6 {[%clk 0:01:11]}  bxc6 {[%clk 0:02:23]} 20. Bxf6 {[%clk 0:01:10]}  Bxf6 {[%clk 0:02:23]} 21. Ne4 {[%clk 0:01:11]}  Bg7 {[%clk 0:02:18]} 22. Nc5 {[%clk 0:01:08]}  Bc3 {[%clk 0:01:43]} 23. Re3 {[%clk 0:01:01]}  Bb4 {[%clk 0:01:43]} 24. Qd4 {[%clk 0:00:56]}  Bxc5 {[%clk 0:01:36]} 25. Rxc5 {[%clk 0:00:55]}  Qb6 {[%clk 0:01:36]} 26. h4 {[%clk 0:00:50]}  Rfd8 {[%clk 0:01:29]} 27. Rec3 {[%clk 0:00:45]}  Rd7 {[%clk 0:01:25]} 28. Qf4 {[%clk 0:00:40]}  Rad8 {[%clk 0:01:12]} 29. Rxc6 {[%clk 0:00:40]}  Qb1+ {[%clk 0:01:12]} 30. Rc1 {[%clk 0:00:40]}  Qa2 {[%clk 0:01:09]} 31. Rxa6 {[%clk 0:00:34]}  Qd5 {[%clk 0:01:06]} 32. Rac6 {[%clk 0:00:33]}  Rxd6 {[%clk 0:01:02]} 33. Rxd6 {[%clk 0:00:32]}  Rxd6 {[%clk 0:01:03]} 34. Qf6 {[%clk 0:00:31]}  Rd8 {[%clk 0:01:01]} 35. Rc7 {[%clk 0:00:29]}  Qd1+ {[%clk 0:00:59]} 36. Kh2 {[%clk 0:00:18]}  Qd6+ {[%clk 0:00:59]} 0-1


[Site "https://www.chess.com"]

[Event "Titled Tuesday Blitz July 11 Early 2023"]
[White "Winkels, Marcel"]
[Black "Kuchava, Ana"]
[WhiteFideId "1003887"]
[BlackFideId "13605348"]
[WhiteElo "2110"]
[BlackElo "2245"]
[Result "1-0"]
[Round "11"]
[TimeControl "180+2"]
[Date "2023.07.11"]
[WhiteClock "0:00:54"]
[BlackClock "0:00:03"]
[Board "133"]

1. e4 {[%clk 0:03:00]}  c5 {[%clk 0:02:59]} 2. Nf3 {[%clk 0:03:00]}  d6 {[%clk 0:02:59]} 3. d4 {[%clk 0:03:00]}  cxd4 {[%clk 0:03:00]} 4. Nxd4 {[%clk 0:03:00]}  Nf6 {[%clk 0:03:01]} 5. Nc3 {[%clk 0:03:01]}  Nc6 {[%clk 0:03:01]} 6. Bc4 {[%clk 0:02:57]}  e6 {[%clk 0:03:01]} 7. Be3 {[%clk 0:02:56]}  a6 {[%clk 0:02:58]} 8. Bb3 {[%clk 0:02:54]}  Qc7 {[%clk 0:02:56]} 9. Qe2 {[%clk 0:02:54]}  Na5 {[%clk 0:02:53]} 10. O-O-O {[%clk 0:02:53]}  Be7 {[%clk 0:02:44]} 11. Rhg1 {[%clk 0:02:50]}  b5 {[%clk 0:02:39]} 12. g4 {[%clk 0:02:48]}  b4 {[%clk 0:02:36]} 13. Na4 {[%clk 0:02:38]}  Nd7 {[%clk 0:02:33]} 14. f4 {[%clk 0:02:28]}  Nc5 {[%clk 0:02:32]} 15. f5 {[%clk 0:02:17]}  Bd7 {[%clk 0:02:11]} 16. Nxc5 {[%clk 0:01:58]}  dxc5 {[%clk 0:02:10]} 17. fxe6 {[%clk 0:01:58]}  fxe6 {[%clk 0:01:54]} 18. Nxe6 {[%clk 0:01:55]}  Nxb3+ {[%clk 0:01:54]} 19. axb3 {[%clk 0:01:43]}  Bxe6 {[%clk 0:01:53]} 20. Rgf1 {[%clk 0:01:34]}  a5 {[%clk 0:01:46]} 21. Qb5+ {[%clk 0:01:28]}  Bd7 {[%clk 0:01:43]} 22. Qc4 {[%clk 0:01:28]}  O-O-O {[%clk 0:01:26]} 23. Qa6+ {[%clk 0:01:15]}  Kb8 {[%clk 0:01:18]} 24. Bf4 {[%clk 0:01:14]}  Qxf4+ {[%clk 0:00:42]} 25. Rxf4 {[%clk 0:01:09]}  Bg5 {[%clk 0:00:43]} 26. Qd6+ {[%clk 0:00:57]}  Kb7 {[%clk 0:00:10]} 27. Qd5+ {[%clk 0:00:56]}  Bc6 {[%clk 0:00:09]} 28. Qxg5 {[%clk 0:00:55]}  Rxd1+ {[%clk 0:00:03]} 29. Kxd1 {[%clk 0:00:54]} 1-0


[Site "https://www.chess.com"]

[Event "Titled Tuesday Blitz July 11 Early 2023"]
[White "UgarteCesar"]
[Black "Ismayilova, Khanim"]
[BlackFideId "13429019"]
[WhiteElo "2241"]
[BlackElo "2047"]
[Result "0-1"]
[Round "11"]
[TimeControl "180+2"]
[Date "2023.07.11"]
[WhiteClock "0:00:13"]
[BlackClock "0:00:08"]
[Board "134"]

1. d4 {[%clk 0:01:01]}  d5 {[%clk 0:02:59]} 2. Bf4 {[%clk 0:01:01]}  Nf6 {[%clk 0:02:59]} 3. e3 {[%clk 0:01:00]}  e6 {[%clk 0:02:57]} 4. Nf3 {[%clk 0:01:00]}  Bd6 {[%clk 0:02:58]} 5. Bg3 {[%clk 0:01:01]}  O-O {[%clk 0:02:55]} 6. Bd3 {[%clk 0:01:01]}  b6 {[%clk 0:02:55]} 7. Qe2 {[%clk 0:01:00]}  c5 {[%clk 0:02:50]} 8. c3 {[%clk 0:01:00]}  Bxg3 {[%clk 0:02:44]} 9. hxg3 {[%clk 0:01:00]}  Ne4 {[%clk 0:02:45]} 10. Nbd2 {[%clk 0:00:58]}  f5 {[%clk 0:02:44]} 11. Ne5 {[%clk 0:00:58]}  Nd7 {[%clk 0:02:40]} 12. Qh5 {[%clk 0:00:53]}  Ndf6 {[%clk 0:02:19]} 13. Qh4 {[%clk 0:00:48]}  Nxd2 {[%clk 0:02:08]} 14. Kxd2 {[%clk 0:00:48]}  Ne4+ {[%clk 0:02:09]} 15. Bxe4 {[%clk 0:00:49]}  Qxh4 {[%clk 0:02:09]} 16. gxh4 {[%clk 0:00:45]}  fxe4 {[%clk 0:02:07]} 17. f4 {[%clk 0:00:41]}  Ba6 {[%clk 0:01:50]} 18. g4 {[%clk 0:00:39]}  Rac8 {[%clk 0:01:44]} 19. Rac1 {[%clk 0:00:37]}  Bc4 {[%clk 0:01:34]} 20. b3 {[%clk 0:00:34]}  Ba6 {[%clk 0:01:33]} 21. g5 {[%clk 0:00:34]}  Rc7 {[%clk 0:01:19]} 22. b4 {[%clk 0:00:34]}  cxb4 {[%clk 0:01:16]} 23. cxb4 {[%clk 0:00:33]}  Bc4 {[%clk 0:01:16]} 24. Nxc4 {[%clk 0:00:27]}  dxc4 {[%clk 0:01:16]} 25. b5 {[%clk 0:00:25]}  Rf5 {[%clk 0:01:16]} 26. a4 {[%clk 0:00:23]}  a6 {[%clk 0:01:01]} 27. Rb1 {[%clk 0:00:23]}  axb5 {[%clk 0:00:52]} 28. Rxb5 {[%clk 0:00:24]}  Ra7 {[%clk 0:00:45]} 29. Rxf5 {[%clk 0:00:22]}  exf5 {[%clk 0:00:45]} 30. Ra1 {[%clk 0:00:22]}  Kf7 {[%clk 0:00:42]} 31. Kc3 {[%clk 0:00:22]}  Rc7 {[%clk 0:00:41]} 32. Rb1 {[%clk 0:00:21]}  Rc6 {[%clk 0:00:39]} 33. Rb4 {[%clk 0:00:20]}  Ke6 {[%clk 0:00:20]} 34. Rxc4 {[%clk 0:00:20]}  Rd6 {[%clk 0:00:20]} 35. Kb4 {[%clk 0:00:20]}  h6 {[%clk 0:00:17]} 36. Kb5 {[%clk 0:00:19]}  hxg5 {[%clk 0:00:16]} 37. hxg5 {[%clk 0:00:20]}  Kd5 {[%clk 0:00:14]} 38. Rb4 {[%clk 0:00:17]}  Rc6 {[%clk 0:00:10]} 39. Ka6 {[%clk 0:00:16]}  g6 {[%clk 0:00:07]} 40. Rxb6 {[%clk 0:00:16]}  Rc3 {[%clk 0:00:06]} 41. Rxg6 {[%clk 0:00:15]}  Rxe3 {[%clk 0:00:06]} 42. Rf6 {[%clk 0:00:15]}  Rg3 {[%clk 0:00:04]} 43. Rxf5+ {[%clk 0:00:15]}  Kxd4 {[%clk 0:00:05]} 44. Kb7 {[%clk 0:00:13]}  e3 {[%clk 0:00:05]} 45. a5 {[%clk 0:00:13]}  e2 {[%clk 0:00:06]} 46. Re5 {[%clk 0:00:14]}  Re3 {[%clk 0:00:06]} 47. Rxe3 {[%clk 0:00:09]}  Kxe3 {[%clk 0:00:06]} 48. a6 {[%clk 0:00:09]}  e1=Q {[%clk 0:00:06]} 49. a7 {[%clk 0:00:10]}  Qb1+ {[%clk 0:00:06]} 50. Kc8 {[%clk 0:00:10]}  Qc2+ {[%clk 0:00:06]} 51. Kb8 {[%clk 0:00:10]}  Qb3+ {[%clk 0:00:06]} 52. Kc8 {[%clk 0:00:10]}  Qc4+ {[%clk 0:00:07]} 53. Kb8 {[%clk 0:00:10]}  Qb5+ {[%clk 0:00:07]} 54. Kc7 {[%clk 0:00:10]}  Qc5+ {[%clk 0:00:08]} 55. Kb7 {[%clk 0:00:11]}  Qb5+ {[%clk 0:00:08]} 56. Kc7 {[%clk 0:00:11]}  Qa6 {[%clk 0:00:08]} 57. Kb8 {[%clk 0:00:11]}  Qb6+ {[%clk 0:00:08]} 58. Ka8 {[%clk 0:00:12]}  Kxf4 {[%clk 0:00:09]} 59. g6 {[%clk 0:00:12]}  Qc7 {[%clk 0:00:07]} 60. g7 {[%clk 0:00:13]}  Qc8# {[%clk 0:00:08]} 0-1


[Site "https://www.chess.com"]

[Event "Titled Tuesday Blitz July 11 Early 2023"]
[White "Navyblue1"]
[Black "Szente Varga, Fruzsina"]
[BlackFideId "712264"]
[WhiteElo "1809"]
[BlackElo "2297"]
[Result "0-1"]
[Round "11"]
[TimeControl "180+2"]
[Date "2023.07.11"]
[WhiteClock "0:00:08"]
[BlackClock "0:01:12"]
[Board "136"]

1. d4 {[%clk 0:03:00]}  Nf6 {[%clk 0:02:52]} 2. c4 {[%clk 0:03:00]}  g6 {[%clk 0:02:52]} 3. Nc3 {[%clk 0:02:57]}  Bg7 {[%clk 0:02:52]} 4. e4 {[%clk 0:02:57]}  d6 {[%clk 0:02:52]} 5. h3 {[%clk 0:02:57]}  O-O {[%clk 0:02:52]} 6. Be3 {[%clk 0:02:57]}  e5 {[%clk 0:02:45]} 7. d5 {[%clk 0:02:56]}  Nbd7 {[%clk 0:02:45]} 8. g4 {[%clk 0:02:48]}  Ne8 {[%clk 0:02:40]} 9. Nf3 {[%clk 0:02:42]}  f5 {[%clk 0:02:40]} 10. gxf5 {[%clk 0:02:42]}  gxf5 {[%clk 0:02:40]} 11. exf5 {[%clk 0:02:42]}  Nc5 {[%clk 0:02:21]} 12. b4 {[%clk 0:01:57]}  Na6 {[%clk 0:01:54]} 13. Bg5 {[%clk 0:01:11]}  Qd7 {[%clk 0:01:40]} 14. Nh4 {[%clk 0:00:52]}  Nxb4 {[%clk 0:01:27]} 15. Ne4 {[%clk 0:00:20]}  Qf7 {[%clk 0:01:22]} 16. Rg1 {[%clk 0:00:17]}  Bxf5 {[%clk 0:01:16]} 17. Nxf5 {[%clk 0:00:16]}  Qxf5 {[%clk 0:01:16]} 18. Bh6 {[%clk 0:00:15]}  Qxe4+ {[%clk 0:01:15]} 19. Qe2 {[%clk 0:00:14]}  Nc2+ {[%clk 0:01:13]} 20. Kd1 {[%clk 0:00:12]}  Qxe2+ {[%clk 0:01:13]} 21. Bxe2 {[%clk 0:00:12]}  Nxa1 {[%clk 0:01:11]} 22. Rxg7+ {[%clk 0:00:11]}  Nxg7 {[%clk 0:01:11]} 23. Bxg7 {[%clk 0:00:08]}  Kxg7 {[%clk 0:01:12]} 0-1


[Site "https://www.chess.com"]

[Event "Titled Tuesday Blitz July 11 Early 2023"]
[White "tomobeast"]
[Black "Lohani, Sujana"]
[BlackFideId "12311987"]
[WhiteElo "2239"]
[BlackElo "1933"]
[Result "1-0"]
[Round "11"]
[TimeControl "180+2"]
[Date "2023.07.11"]
[WhiteClock "0:00:17"]
[BlackClock "0:00:31"]
[Board "137"]

1. e4 {[%clk 0:01:46]}  g6 {[%clk 0:03:00]} 2. h4 {[%clk 0:01:46]}  c5 {[%clk 0:02:56]} 3. h5 {[%clk 0:01:46]}  Nc6 {[%clk 0:02:55]} 4. hxg6 {[%clk 0:01:45]}  fxg6 {[%clk 0:02:54]} 5. Nc3 {[%clk 0:01:45]}  Bg7 {[%clk 0:02:55]} 6. Nf3 {[%clk 0:01:45]}  d6 {[%clk 0:02:51]} 7. Bb5 {[%clk 0:01:43]}  Bg4 {[%clk 0:02:50]} 8. Rh4 {[%clk 0:01:39]}  Bxf3 {[%clk 0:02:49]} 9. Qxf3 {[%clk 0:01:38]}  Nf6 {[%clk 0:02:41]} 10. e5 {[%clk 0:01:35]}  dxe5 {[%clk 0:02:38]} 11. Bxc6+ {[%clk 0:01:35]}  bxc6 {[%clk 0:02:38]} 12. Qxc6+ {[%clk 0:01:36]}  Kf7 {[%clk 0:02:38]} 13. d3 {[%clk 0:01:31]}  Rc8 {[%clk 0:02:32]} 14. Qa4 {[%clk 0:01:30]}  Rc7 {[%clk 0:02:32]} 15. Bg5 {[%clk 0:01:18]}  Qa8 {[%clk 0:02:19]} 16. O-O-O {[%clk 0:01:11]}  Qxg2 {[%clk 0:02:17]} 17. Be3 {[%clk 0:01:07]}  Rd8 {[%clk 0:02:03]} 18. Qc4+ {[%clk 0:01:01]}  Kf8 {[%clk 0:01:59]} 19. Rdh1 {[%clk 0:00:58]}  h5 {[%clk 0:01:56]} 20. Re1 {[%clk 0:00:49]}  Ng4 {[%clk 0:01:43]} 21. Bxc5 {[%clk 0:00:41]}  Bh6+ {[%clk 0:01:23]} 22. Kb1 {[%clk 0:00:39]}  Bg5 {[%clk 0:01:13]} 23. Rhh1 {[%clk 0:00:35]}  Qf3 {[%clk 0:01:10]} 24. Ne4 {[%clk 0:00:33]}  Bf6 {[%clk 0:01:07]} 25. b4 {[%clk 0:00:32]}  Rdc8 {[%clk 0:00:58]} 26. Qe6 {[%clk 0:00:32]}  a5 {[%clk 0:00:52]} 27. Rhg1 {[%clk 0:00:23]}  axb4 {[%clk 0:00:45]} 28. Rxg4 {[%clk 0:00:23]}  hxg4 {[%clk 0:00:40]} 29. Nxf6 {[%clk 0:00:20]}  Qxf6 {[%clk 0:00:39]} 30. Qxf6+ {[%clk 0:00:20]}  Ke8 {[%clk 0:00:35]} 31. Qxg6+ {[%clk 0:00:21]}  Kd7 {[%clk 0:00:35]} 32. Qxg4+ {[%clk 0:00:21]}  Kc6 {[%clk 0:00:34]} 33. Bxb4 {[%clk 0:00:20]}  Kb5 {[%clk 0:00:34]} 34. Rxe5+ {[%clk 0:00:19]}  Ka4 {[%clk 0:00:33]} 35. Bc3+ {[%clk 0:00:18]}  Ka3 {[%clk 0:00:31]} 36. Bb2# {[%clk 0:00:17]} 1-0


[Site "https://www.chess.com"]

[Event "Titled Tuesday Blitz July 11 Early 2023"]
[White "Cardenas Carbajal, Nilson"]
[Black "Adla, Diego"]
[WhiteFideId "8401128"]
[BlackFideId "100072"]
[WhiteElo "2143"]
[BlackElo "2455"]
[Result "1-0"]
[Round "11"]
[TimeControl "180+2"]
[Date "2023.07.11"]
[WhiteClock "0:02:46"]
[BlackClock "0:02:26"]
[Board "138"]

1. e4 {[%clk 0:03:00]}  c5 {[%clk 0:02:57]} 2. d4 {[%clk 0:03:00]}  cxd4 {[%clk 0:02:54]} 3. c3 {[%clk 0:03:00]}  Nf6 {[%clk 0:02:53]} 4. e5 {[%clk 0:02:59]}  Nd5 {[%clk 0:02:52]} 5. Nf3 {[%clk 0:03:00]}  e6 {[%clk 0:02:46]} 6. cxd4 {[%clk 0:02:57]}  d6 {[%clk 0:02:46]} 7. Bc4 {[%clk 0:02:57]}  dxe5 {[%clk 0:02:43]} 8. dxe5 {[%clk 0:02:55]}  Nc6 {[%clk 0:02:35]} 9. O-O {[%clk 0:02:51]}  Be7 {[%clk 0:02:33]} 10. Qe2 {[%clk 0:02:50]}  O-O {[%clk 0:02:32]} 11. Nc3 {[%clk 0:02:46]}  Nf4 {[%clk 0:02:26]} 1-0


[Site "https://www.chess.com"]

[Event "Titled Tuesday Blitz July 11 Early 2023"]
[White "Lisjak, Zlatko"]
[Black "Roque Sola, Jose Luis"]
[WhiteFideId "14502186"]
[BlackFideId "5120390"]
[WhiteElo "2147"]
[BlackElo "2122"]
[Result "1-0"]
[Round "11"]
[TimeControl "180+2"]
[Date "2023.07.11"]
[WhiteClock "0:00:21"]
[BlackClock "0:00:12"]
[Board "140"]

1. d4 {[%clk 0:02:46]}  Nf6 {[%clk 0:02:59]} 2. Nc3 {[%clk 0:02:45]}  d5 {[%clk 0:02:57]} 3. Bf4 {[%clk 0:02:46]}  c5 {[%clk 0:02:46]} 4. e4 {[%clk 0:02:44]}  dxe4 {[%clk 0:02:38]} 5. d5 {[%clk 0:02:43]}  Bg4 {[%clk 0:02:19]} 6. f3 {[%clk 0:02:40]}  exf3 {[%clk 0:02:19]} 7. Nxf3 {[%clk 0:02:40]}  g6 {[%clk 0:02:10]} 8. Qd2 {[%clk 0:02:40]}  Bxf3 {[%clk 0:02:05]} 9. gxf3 {[%clk 0:02:38]}  Bg7 {[%clk 0:02:05]} 10. O-O-O {[%clk 0:02:17]}  O-O {[%clk 0:02:04]} 11. h4 {[%clk 0:02:16]}  Nh5 {[%clk 0:01:50]} 12. Bh6 {[%clk 0:02:14]}  Nd7 {[%clk 0:01:44]} 13. Ne4 {[%clk 0:02:09]}  Ndf6 {[%clk 0:01:40]} 14. Bxg7 {[%clk 0:01:47]}  Kxg7 {[%clk 0:01:35]} 15. Nxc5 {[%clk 0:01:36]}  b6 {[%clk 0:00:47]} 16. Ne4 {[%clk 0:01:31]}  Qd7 {[%clk 0:00:39]} 17. Kb1 {[%clk 0:01:28]}  Rfd8 {[%clk 0:00:30]} 18. c4 {[%clk 0:01:26]}  Qc7 {[%clk 0:00:24]} 19. Rg1 {[%clk 0:01:09]}  Qf4 {[%clk 0:00:23]} 20. Qc3 {[%clk 0:00:57]}  Qxh4 {[%clk 0:00:19]} 21. d6 {[%clk 0:00:45]}  exd6 {[%clk 0:00:19]} 22. Nxd6 {[%clk 0:00:42]}  Qf4 {[%clk 0:00:18]} 23. Qa3 {[%clk 0:00:24]}  Qxf3 {[%clk 0:00:12]} 24. Qxf3 {[%clk 0:00:21]} 1-0


[Site "https://www.chess.com"]